[Event "*** Titled Tuesday Blitz"]
[Site "Chess.com"]
[Date "2019.04.02"]
[Round "2"]
[White "Manukyan_Artak"]
[Black "GM_RobertoMogranzini"]
[Result "0-1"]
[WhiteElo "2438"]
[BlackElo "2475"]
[TimeControl "180+2"]
[EndTime "14:23:59 PDT"]
[Termination "GM_RobertoMogranzini won by resignation"]

1. e4 {[%clk 0:03:01.9]} 1... d6 {[%clk 0:02:58.2]} 2. d4 {[%clk 0:03:02.9]}
2... Nf6 {[%clk 0:02:59.3]} 3. Nc3 {[%clk 0:03:02.7]} 3... e5 {[%clk 0:03:00.4]}
4. dxe5 {[%clk 0:03:02.4]} 4... dxe5 {[%clk 0:03:01.5]} 5. Qxd8+ {[%clk
0:03:04]} 5... Kxd8 {[%clk 0:03:03.4]} 6. Nf3 {[%clk 0:02:59.8]} 6... Bd6 {[%clk
0:03:02.9]} 7. Bg5 {[%clk 0:03:00.3]} 7... c6 {[%clk 0:03:00.1]} 8. O-O-O {[%clk
0:02:56.2]} 8... Ke7 {[%clk 0:03:01]} 9. Nh4 {[%clk 0:02:42.4]} 9... Bb4 {[%clk
0:02:24.5]} 10. Bc4 {[%clk 0:02:19]} 10... h6 {[%clk 0:02:15]} 11. Bxf6+ {[%clk
0:02:19.2]} 11... Kxf6 {[%clk 0:02:11.6]} 12. Rd3 {[%clk 0:02:12.3]} 12... Be6
{[%clk 0:01:55.2]} 13. Rf3+ {[%clk 0:02:06.2]} 13... Ke7 {[%clk 0:01:55]} 14.
Bxe6 {[%clk 0:01:55.8]} 14... Kxe6 {[%clk 0:01:55.8]} 15. Rd1 {[%clk 0:01:43.7]}
15... Na6 {[%clk 0:01:48.7]} 16. a3 {[%clk 0:01:34.4]} 16... Bxc3 {[%clk
0:01:32.7]} 17. Rxc3 {[%clk 0:01:35.2]} 17... Rad8 {[%clk 0:01:31.9]} 18. Nf5
{[%clk 0:01:24.4]} 18... Rxd1+ {[%clk 0:01:27.8]} 19. Kxd1 {[%clk 0:01:26.3]}
19... g6 {[%clk 0:01:28.2]} 20. Ne3 {[%clk 0:01:27.1]} 20... h5 {[%clk
0:01:19.1]} 21. Ke2 {[%clk 0:01:26.2]} 21... Rd8 {[%clk 0:01:18.8]} 22. b4
{[%clk 0:01:19]} 22... Nc7 {[%clk 0:01:15.5]} 23. a4 {[%clk 0:01:18.6]} 23...
Ke7 {[%clk 0:00:55.5]} 24. Nc4 {[%clk 0:01:14.8]} 24... f6 {[%clk 0:00:51.3]}
25. Na5 {[%clk 0:01:14.3]} 25... Rb8 {[%clk 0:00:51.5]} 26. Rxc6 {[%clk
0:01:11.2]} 26... Ne6 {[%clk 0:00:48.5]} 27. Rc4 {[%clk 0:01:06.2]} 27... Nf4+
{[%clk 0:00:39.2]} 28. Kf3 {[%clk 0:01:02.1]} 28... Ne6 {[%clk 0:00:41.1]} 29.
c3 {[%clk 0:01:00.1]} 29... Kd7 {[%clk 0:00:37.4]} 30. g3 {[%clk 0:00:55.8]}
30... g5 {[%clk 0:00:29.4]} 31. Ke3 {[%clk 0:00:55.4]} 31... g4 {[%clk
0:00:29.9]} 32. Nb3 {[%clk 0:00:53.3]} 32... b6 {[%clk 0:00:29.1]} 33. a5 {[%clk
0:00:54]} 33... h4 {[%clk 0:00:29.1]} 34. axb6 {[%clk 0:00:53.8]} 34... axb6
{[%clk 0:00:31]} 35. b5 {[%clk 0:00:53.5]} 35... hxg3 {[%clk 0:00:31.6]} 36.
hxg3 {[%clk 0:00:54.2]} 36... Ra8 {[%clk 0:00:32]} 37. Rc6 {[%clk 0:00:51.8]}
37... Ra3 {[%clk 0:00:31.5]} 38. Nc1 {[%clk 0:00:45.9]} 38... Nd4 {[%clk
0:00:32]} 39. Rxb6 {[%clk 0:00:44.5]} 39... Rxc3+ {[%clk 0:00:33.1]} 40. Kd2
{[%clk 0:00:45.8]} 40... Rc2+ {[%clk 0:00:33.8]} 41. Kd1 {[%clk 0:00:45.2]}
41... Rxf2 {[%clk 0:00:29.3]} 42. Nd3 {[%clk 0:00:46.2]} 42... Rf3 {[%clk
0:00:25.3]} 43. Nc5+ {[%clk 0:00:45]} 43... Kc7 {[%clk 0:00:26.2]} 44. Ra6
{[%clk 0:00:31.1]} 44... Nxb5 {[%clk 0:00:25.2]} 45. Ne6+ {[%clk 0:00:27.8]}
45... Kb7 {[%clk 0:00:24.5]} 46. Nc5+ {[%clk 0:00:28.6]} 46... Kc7 {[%clk
0:00:25.8]} 47. Ne6+ {[%clk 0:00:29.5]} 47... Kd7 {[%clk 0:00:26.5]} 48. Nc5+
{[%clk 0:00:25.5]} 48... Ke7 {[%clk 0:00:27.7]} 49. Rb6 {[%clk 0:00:24.3]} 49...
Nd4 {[%clk 0:00:26.6]} 50. Rb7+ {[%clk 0:00:24.6]} 50... Kd6 {[%clk 0:00:27.2]}
51. Nd7 {[%clk 0:00:24.9]} 51... Kc6 {[%clk 0:00:26.6]} 52. Ra7 {[%clk
0:00:25.3]} 52... Nb5 {[%clk 0:00:24.3]} 53. Ra5 {[%clk 0:00:26.2]} 53... Kxd7
{[%clk 0:00:24.8]} 54. Rxb5 {[%clk 0:00:27.3]} 54... Rxg3 {[%clk 0:00:26.3]} 55.
Rb7+ {[%clk 0:00:27.7]} 55... Ke6 {[%clk 0:00:27.3]} 56. Rb6+ {[%clk 0:00:29]}
56... Kf7 {[%clk 0:00:28.7]} 57. Ke2 {[%clk 0:00:30.2]} 57... Rf3 {[%clk
0:00:29.5]} 58. Rb7+ {[%clk 0:00:30]} 58... Kg6 {[%clk 0:00:30.9]} 59. Rb8
{[%clk 0:00:31.9]} 59... Kg5 {[%clk 0:00:31.3]} 60. Rf8 {[%clk 0:00:30.7]} 60...
Ra3 {[%clk 0:00:30.9]} 61. Ra8 {[%clk 0:00:29.7]} 61... Rxa8 {[%clk 0:00:30.9]}
0-1

[Event "*** Titled Tuesday Blitz"]
[Site "Chess.com"]
[Date "2019.04.02"]
[Round "2"]
[White "Phurba13"]
[Black "Entilza"]
[Result "1/2-1/2"]
[WhiteElo "2233"]
[BlackElo "2218"]
[TimeControl "180+2"]
[EndTime "14:23:59 PDT"]
[Termination "Game drawn by repetition"]

1. e4 {[%clk 0:03:01.9]} 1... c6 {[%clk 0:02:40]} 2. d3 {[%clk 0:03:02.6]} 2...
d5 {[%clk 0:02:39.2]} 3. Nd2 {[%clk 0:02:58.9]} 3... e5 {[%clk 0:02:37]} 4. g3
{[%clk 0:02:59.4]} 4... Nf6 {[%clk 0:02:35.6]} 5. Bg2 {[%clk 0:03:00.9]} 5...
Bc5 {[%clk 0:02:34.8]} 6. h3 {[%clk 0:03:00]} 6... O-O {[%clk 0:02:32.8]} 7.
Ngf3 {[%clk 0:02:58.5]} 7... Re8 {[%clk 0:02:25.3]} 8. O-O {[%clk 0:02:59.8]}
8... dxe4 {[%clk 0:02:23.9]} 9. dxe4 {[%clk 0:02:59.8]} 9... Nbd7 {[%clk
0:02:18.9]} 10. Qe2 {[%clk 0:02:57.3]} 10... Nf8 {[%clk 0:02:15.3]} 11. b3
{[%clk 0:02:41.1]} 11... Qc7 {[%clk 0:02:10]} 12. Bb2 {[%clk 0:02:41.8]} 12...
Ng6 {[%clk 0:02:02]} 13. a4 {[%clk 0:02:40.7]} 13... a5 {[%clk 0:02:01]} 14.
Rfe1 {[%clk 0:02:33.4]} 14... b6 {[%clk 0:02:01.1]} 15. Rad1 {[%clk 0:02:26.2]}
15... Ba6 {[%clk 0:02:00.4]} 16. c4 {[%clk 0:02:27.7]} 16... Rad8 {[%clk
0:02:00.3]} 17. Nb1 {[%clk 0:02:03.8]} 17... Bb4 {[%clk 0:01:58.7]} 18. Nc3
{[%clk 0:02:04.5]} 18... Nd7 {[%clk 0:01:41.8]} 19. Qc2 {[%clk 0:01:52.3]} 19...
Nc5 {[%clk 0:01:40.6]} 20. Re2 {[%clk 0:01:28.5]} 20... Bxc3 {[%clk 0:01:29.6]}
21. Bxc3 {[%clk 0:01:22.9]} 21... Rxd1+ {[%clk 0:01:27.2]} 22. Qxd1 {[%clk
0:01:24.8]} 22... Rd8 {[%clk 0:01:26.3]} 23. Qc2 {[%clk 0:01:25.4]} 23... Bc8
{[%clk 0:01:18.9]} 24. Rd2 {[%clk 0:01:23.4]} 24... f6 {[%clk 0:01:17.6]} 25.
Ne1 {[%clk 0:01:01.5]} 25... Be6 {[%clk 0:01:11.9]} 26. Nd3 {[%clk 0:00:55.4]}
26... Nxd3 {[%clk 0:01:08.4]} 27. Rxd3 {[%clk 0:00:57.3]} 27... Nf8 {[%clk
0:01:07.7]} 28. Qd2 {[%clk 0:00:54.9]} 28... Rxd3 {[%clk 0:01:06.1]} 29. Qxd3
{[%clk 0:00:56.8]} 29... Nd7 {[%clk 0:01:06.6]} 30. Bf1 {[%clk 0:00:52.1]} 30...
Nc5 {[%clk 0:01:06.1]} 31. Qc2 {[%clk 0:00:53.3]} 31... Qd6 {[%clk 0:01:03.2]}
32. Bd2 {[%clk 0:00:51.2]} 32... Qd4 {[%clk 0:01:01.3]} 33. Be3 {[%clk
0:00:40.4]} 33... Qd6 {[%clk 0:01:00.1]} 34. Kg2 {[%clk 0:00:34]} 34... Kf7
{[%clk 0:00:58.4]} 35. Be2 {[%clk 0:00:33.3]} 35... Ke7 {[%clk 0:00:58]} 36. f4
{[%clk 0:00:26.7]} 36... Bd7 {[%clk 0:00:53]} 37. Bf3 {[%clk 0:00:21.4]} 37...
exf4 {[%clk 0:00:42.1]} 38. gxf4 {[%clk 0:00:23.3]} 38... Ne6 {[%clk 0:00:42.2]}
39. Qd2 {[%clk 0:00:21.4]} 39... Qxd2+ {[%clk 0:00:40.7]} 40. Bxd2 {[%clk
0:00:23.3]} 40... Nd4 {[%clk 0:00:40.8]} 41. Bd1 {[%clk 0:00:22.2]} 41... c5
{[%clk 0:00:40.7]} 42. Be3 {[%clk 0:00:22.1]} 42... f5 {[%clk 0:00:40.3]} 43. e5
{[%clk 0:00:16.4]} 43... Bc6+ {[%clk 0:00:39.5]} 44. Kf2 {[%clk 0:00:17.9]}
44... Be4 {[%clk 0:00:39.2]} 45. h4 {[%clk 0:00:16.6]} 45... Bc2 {[%clk
0:00:38.7]} 46. Bxc2 {[%clk 0:00:14.2]} 46... Nxc2 {[%clk 0:00:40.6]} 47. Bd2
{[%clk 0:00:14.4]} 47... Na1 {[%clk 0:00:38.9]} 48. Ke3 {[%clk 0:00:13.4]} 48...
Nxb3 {[%clk 0:00:38.2]} 49. Be1 {[%clk 0:00:14.8]} 49... Nd4 {[%clk 0:00:37.5]}
50. Kd3 {[%clk 0:00:15.6]} 50... Ke6 {[%clk 0:00:36.2]} 51. Bf2 {[%clk
0:00:16.9]} 51... Nc6 {[%clk 0:00:32.3]} 52. Be3 {[%clk 0:00:18]} 52... g6
{[%clk 0:00:31.6]} 53. Bf2 {[%clk 0:00:19.4]} 53... Nb4+ {[%clk 0:00:29.5]} 54.
Kc3 {[%clk 0:00:19.7]} 54... Nc6 {[%clk 0:00:29.3]} 55. Be3 {[%clk 0:00:21.1]}
55... Nd8 {[%clk 0:00:27.7]} 56. Kd3 {[%clk 0:00:21.8]} 56... Nc6 {[%clk
0:00:27.6]} 57. Kc3 {[%clk 0:00:23.1]} 57... h6 {[%clk 0:00:28]} 58. Kd3 {[%clk
0:00:24.5]} 58... Nb4+ {[%clk 0:00:26.3]} 59. Kc3 {[%clk 0:00:24.9]} 59... Nc6
{[%clk 0:00:25]} 60. Kd3 {[%clk 0:00:26.3]} 60... Nb4+ {[%clk 0:00:25.2]} 61.
Kc3 {[%clk 0:00:27.4]} 61... Nc6 {[%clk 0:00:24.4]} 1/2-1/2

[Event "*** Titled Tuesday Blitz"]
[Site "Chess.com"]
[Date "2019.04.02"]
[Round "2"]
[White "wannabe2700"]
[Black "m3alam"]
[Result "0-1"]
[WhiteElo "2602"]
[BlackElo "2420"]
[TimeControl "180+2"]
[EndTime "14:24:06 PDT"]
[Termination "m3alam won by resignation"]

1. e4 {[%clk 0:03:01.9]} 1... c6 {[%clk 0:03:01.4]} 2. d4 {[%clk 0:03:02]} 2...
d5 {[%clk 0:03:03.3]} 3. e5 {[%clk 0:03:03.4]} 3... Bf5 {[%clk 0:02:57.6]} 4.
Nf3 {[%clk 0:03:04]} 4... e6 {[%clk 0:02:57.8]} 5. Be2 {[%clk 0:03:04.9]} 5...
Ne7 {[%clk 0:02:59.1]} 6. O-O {[%clk 0:03:06.1]} 6... Ng6 {[%clk 0:02:59.2]} 7.
Nbd2 {[%clk 0:03:07.2]} 7... Nd7 {[%clk 0:02:58.1]} 8. Nb3 {[%clk 0:03:04.1]}
8... f6 {[%clk 0:02:58.5]} 9. exf6 {[%clk 0:02:59.9]} 9... Qxf6 {[%clk
0:02:58.5]} 10. c4 {[%clk 0:02:53.1]} 10... Bd6 {[%clk 0:02:58.5]} 11. cxd5
{[%clk 0:02:48.6]} 11... exd5 {[%clk 0:02:58.8]} 12. Bd3 {[%clk 0:02:44]} 12...
O-O {[%clk 0:02:59.2]} 13. Bg5 {[%clk 0:02:43.4]} 13... Qf7 {[%clk 0:02:57.4]}
14. Bxf5 {[%clk 0:02:37]} 14... Qxf5 {[%clk 0:02:57.7]} 15. Qb1 {[%clk
0:02:33.3]} 15... Qg4 {[%clk 0:02:47.9]} 16. h3 {[%clk 0:02:33.7]} 16... Qh5
{[%clk 0:02:48.5]} 17. Qd3 {[%clk 0:02:31.6]} 17... Rxf3 {[%clk 0:02:46.9]} 18.
Qxf3 {[%clk 0:02:27]} 18... Qxg5 {[%clk 0:02:47.8]} 19. Rae1 {[%clk 0:02:26]}
19... Rf8 {[%clk 0:02:48.8]} 20. Qg4 {[%clk 0:02:13.8]} 20... Qxg4 {[%clk
0:02:43.5]} 21. hxg4 {[%clk 0:02:15.7]} 21... Nf6 {[%clk 0:02:41.8]} 22. f3
{[%clk 0:02:13.3]} 22... Nf4 {[%clk 0:02:41.8]} 23. Rd1 {[%clk 0:02:07.3]} 23...
Re8 {[%clk 0:02:38.3]} 24. Rfe1 {[%clk 0:02:06.3]} 24... Rxe1+ {[%clk
0:02:19.9]} 25. Rxe1 {[%clk 0:02:08.2]} 25... Kf7 {[%clk 0:02:19.5]} 26. Rd1
{[%clk 0:01:45.1]} 26... g5 {[%clk 0:02:17.9]} 27. Kf2 {[%clk 0:01:44.8]} 27...
h5 {[%clk 0:02:10.1]} 28. gxh5 {[%clk 0:01:44.4]} 28... N6xh5 {[%clk 0:02:09.4]}
29. Nc1 {[%clk 0:01:39.9]} 29... Ne6 {[%clk 0:02:09.8]} 30. Rh1 {[%clk
0:01:35.2]} 30... Kg6 {[%clk 0:02:03.8]} 31. Nb3 {[%clk 0:01:29.9]} 31... Bg3+
{[%clk 0:02:03.7]} 32. Ke3 {[%clk 0:01:30.5]} 32... Bf4+ {[%clk 0:02:02.9]} 33.
Kd3 {[%clk 0:01:30.6]} 33... Bc7 {[%clk 0:01:54.6]} 34. Ke3 {[%clk 0:01:28.1]}
34... Nhf4 {[%clk 0:01:53.1]} 35. Rg1 {[%clk 0:01:13.9]} 35... Nxd4 {[%clk
0:01:43.4]} 36. Nxd4 {[%clk 0:01:13.8]} 36... Bb6 {[%clk 0:01:44.3]} 37. Rh1
{[%clk 0:00:56.9]} 37... Ne6 {[%clk 0:01:40.4]} 38. Kd2 {[%clk 0:00:54.9]} 38...
Bxd4 {[%clk 0:01:38.3]} 39. b4 {[%clk 0:00:53.3]} 39... b6 {[%clk 0:01:36.4]}
40. Rc1 {[%clk 0:00:49.8]} 40... c5 {[%clk 0:01:37.1]} 41. bxc5 {[%clk
0:00:51.2]} 41... bxc5 {[%clk 0:01:35.9]} 42. Rb1 {[%clk 0:00:52.5]} 42... Kf5
{[%clk 0:01:34]} 43. Rb7 {[%clk 0:00:52.6]} 43... c4 {[%clk 0:01:34.7]} 44. Rf7+
{[%clk 0:00:49.7]} 44... Ke5 {[%clk 0:01:34.7]} 45. Re7 {[%clk 0:00:50.2]} 45...
Bc5 {[%clk 0:01:34]} 46. Re8 {[%clk 0:00:50.9]} 46... Kd6 {[%clk 0:01:30.4]} 47.
Kc3 {[%clk 0:00:49.9]} 47... a5 {[%clk 0:01:30.3]} 48. Ra8 {[%clk 0:00:45.2]}
48... Bb4+ {[%clk 0:01:31.1]} 49. Kb2 {[%clk 0:00:46.6]} 49... d4 {[%clk
0:01:31.2]} 50. a3 {[%clk 0:00:47.6]} 50... Bc5 {[%clk 0:01:24.4]} 51. Rxa5
{[%clk 0:00:47.4]} 51... Kd5 {[%clk 0:01:23.7]} 52. Ra8 {[%clk 0:00:43.6]} 52...
Nf4 {[%clk 0:01:25.1]} 53. Rg8 {[%clk 0:00:39]} 53... d3 {[%clk 0:01:12.8]} 54.
Rxg5+ {[%clk 0:00:34.8]} 54... Kd4 {[%clk 0:01:14]} 55. g3 {[%clk 0:00:16.7]}
55... c3+ {[%clk 0:01:06.7]} 56. Kb3 {[%clk 0:00:16.7]} 56... c2 {[%clk
0:01:00.9]} 57. gxf4 {[%clk 0:00:15.4]} 57... c1=Q {[%clk 0:01:01.2]} 58. Ka4
{[%clk 0:00:14.8]} 58... Qc2+ {[%clk 0:01:01.1]} 59. Kb5 {[%clk 0:00:15.6]}
59... Qc4+ {[%clk 0:01:00.4]} 60. Ka5 {[%clk 0:00:14.5]} 60... d2 {[%clk
0:00:58.6]} 61. Rg7 {[%clk 0:00:13.5]} 61... Qc3+ {[%clk 0:00:51.7]} 62. Kb5
{[%clk 0:00:12.9]} 62... Qb3+ {[%clk 0:00:52.4]} 63. Kc6 {[%clk 0:00:12.7]}
63... Qb6+ {[%clk 0:00:53.4]} 64. Kd7 {[%clk 0:00:13.6]} 64... Qb7+ {[%clk
0:00:54.5]} 65. Ke6 {[%clk 0:00:14.1]} 65... Qxg7 {[%clk 0:00:56.4]} 0-1

[Event "*** Titled Tuesday Blitz"]
[Site "Chess.com"]
[Date "2019.04.02"]
[Round "2"]
[White "Off-War"]
[Black "vugarrasulov"]
[Result "0-1"]
[WhiteElo "2616"]
[BlackElo "2869"]
[TimeControl "180+2"]
[EndTime "14:24:09 PDT"]
[Termination "vugarrasulov won on time"]

1. e4 {[%clk 0:02:33.6]} 1... c5 {[%clk 0:02:57.3]} 2. Nf3 {[%clk 0:02:35]} 2...
d6 {[%clk 0:02:58.6]} 3. d4 {[%clk 0:02:32.9]} 3... cxd4 {[%clk 0:03:00.5]} 4.
Nxd4 {[%clk 0:02:34.8]} 4... Nf6 {[%clk 0:03:02.2]} 5. Nc3 {[%clk 0:02:36.4]}
5... a6 {[%clk 0:03:03.5]} 6. Nb3 {[%clk 0:02:35.6]} 6... g6 {[%clk 0:03:01.5]}
7. Be2 {[%clk 0:02:35.9]} 7... Bg7 {[%clk 0:03:02.5]} 8. g4 {[%clk 0:02:35.6]}
8... Nc6 {[%clk 0:02:58.1]} 9. Be3 {[%clk 0:02:34.5]} 9... Be6 {[%clk
0:02:57.8]} 10. g5 {[%clk 0:02:34.2]} 10... Nd7 {[%clk 0:02:58.6]} 11. f4 {[%clk
0:02:32.6]} 11... b5 {[%clk 0:02:56.2]} 12. Qd2 {[%clk 0:02:32.9]} 12... Nb6
{[%clk 0:02:50.7]} 13. Nd4 {[%clk 0:02:27.9]} 13... Rc8 {[%clk 0:02:27.8]} 14.
f5 {[%clk 0:02:19.4]} 14... Bc4 {[%clk 0:02:15.8]} 15. Nxc6 {[%clk 0:02:17.1]}
15... Rxc6 {[%clk 0:02:15.5]} 16. Bd4 {[%clk 0:02:14.2]} 16... Bxd4 {[%clk
0:02:02.9]} 17. Qxd4 {[%clk 0:02:16.1]} 17... O-O {[%clk 0:02:03.7]} 18. Bxc4
{[%clk 0:01:54]} 18... Rxc4 {[%clk 0:01:53.1]} 19. Qd3 {[%clk 0:01:55.1]} 19...
Qc7 {[%clk 0:01:50]} 20. O-O-O {[%clk 0:01:28.8]} 20... Rc8 {[%clk 0:01:48]} 21.
fxg6 {[%clk 0:01:17.7]} 21... hxg6 {[%clk 0:01:46.8]} 22. Kb1 {[%clk 0:00:43.5]}
22... Rxc3 {[%clk 0:01:35.3]} 23. Qxc3 {[%clk 0:00:40]} 23... Qxc3 {[%clk
0:01:35.8]} 24. bxc3 {[%clk 0:00:41.9]} 24... Na4 {[%clk 0:01:37.4]} 25. Rd4
{[%clk 0:00:38.7]} 25... Nxc3+ {[%clk 0:01:32.4]} 26. Kb2 {[%clk 0:00:35.4]}
26... Rc6 {[%clk 0:01:26.9]} 27. h4 {[%clk 0:00:33.7]} 27... e5 {[%clk
0:01:26.6]} 28. Rb4 {[%clk 0:00:19.3]} 28... a5 {[%clk 0:01:22.6]} 29. Rb3
{[%clk 0:00:20.5]} 29... b4 {[%clk 0:01:23.8]} 30. a3 {[%clk 0:00:15.2]} 30...
Na4+ {[%clk 0:01:21.3]} 31. Kc1 {[%clk 0:00:13.6]} 31... Nc5 {[%clk 0:01:21.9]}
32. Re3 {[%clk 0:00:15]} 32... bxa3 {[%clk 0:01:15.3]} 33. Rxa3 {[%clk
0:00:16.9]} 33... a4 {[%clk 0:01:05.5]} 34. Rd1 {[%clk 0:00:15.6]} 34... Kg7
{[%clk 0:01:03.9]} 35. Re3 {[%clk 0:00:14.3]} 35... Nb3+ {[%clk 0:01:00.8]} 36.
Kb2 {[%clk 0:00:12.5]} 36... Nd4 {[%clk 0:01:02.7]} 37. c3 {[%clk 0:00:13.3]}
37... Rb6+ {[%clk 0:01:02.6]} 38. Ka2 {[%clk 0:00:10.7]} 38... Ne6 {[%clk
0:00:56.1]} 39. Red3 {[%clk 0:00:09.4]} 39... Rb3 {[%clk 0:00:52.9]} 40. Rxd6
{[%clk 0:00:03.9]} 40... Rxc3 {[%clk 0:00:52.4]} 41. R1d5 {[%clk 0:00:05.4]}
41... Nf4 {[%clk 0:00:40.7]} 42. Rxe5 {[%clk 0:00:06.7]} 42... Nd3 {[%clk
0:00:42]} 43. Rb5 {[%clk 0:00:06.5]} 43... a3 {[%clk 0:00:42.9]} 44. Rd7 {[%clk
0:00:05.3]} 44... Nc1+ {[%clk 0:00:41]} 45. Ka1 {[%clk 0:00:05.1]} 45... Nb3+
{[%clk 0:00:37]} 46. Ka2 {[%clk 0:00:05.8]} 46... Nc1+ {[%clk 0:00:37.9]} 47.
Ka1 {[%clk 0:00:06.8]} 47... Rf3 {[%clk 0:00:35.7]} 48. e5 {[%clk 0:00:06.5]}
48... Nb3+ {[%clk 0:00:36.8]} 49. Ka2 {[%clk 0:00:06.8]} 49... Nc1+ {[%clk
0:00:38.1]} 50. Kb1 {[%clk 0:00:08.1]} 50... a2+ {[%clk 0:00:34.6]} 51. Ka1
{[%clk 0:00:09.5]} 51... Ra3 {[%clk 0:00:21.5]} 52. e6 {[%clk 0:00:09.8]} 52...
Nb3+ {[%clk 0:00:22.5]} 53. Rxb3 {[%clk 0:00:10.4]} 53... Rxb3 {[%clk
0:00:24.4]} 54. Rxf7+ {[%clk 0:00:10.6]} 54... Kg8 {[%clk 0:00:25.9]} 55. Rf6
{[%clk 0:00:04.5]} 55... Kg7 {[%clk 0:00:26.7]} 0-1

[Event "*** Titled Tuesday Blitz"]
[Site "Chess.com"]
[Date "2019.04.02"]
[Round "2"]
[White "talento10"]
[Black "JSMastropiero"]
[Result "1-0"]
[WhiteElo "2185"]
[BlackElo "2241"]
[TimeControl "180+2"]
[EndTime "14:24:14 PDT"]
[Termination "talento10 won by resignation"]

1. e4 {[%clk 0:03:01.9]} 1... e6 {[%clk 0:02:57.7]} 2. d4 {[%clk 0:03:02.7]}
2... d5 {[%clk 0:02:57.7]} 3. Nd2 {[%clk 0:03:04.6]} 3... Nf6 {[%clk 0:02:56]}
4. e5 {[%clk 0:02:53.9]} 4... Nfd7 {[%clk 0:02:56.1]} 5. c3 {[%clk 0:02:55.4]}
5... c5 {[%clk 0:02:55.6]} 6. Ngf3 {[%clk 0:02:56.4]} 6... Nc6 {[%clk
0:02:55.3]} 7. Bd3 {[%clk 0:02:58]} 7... g6 {[%clk 0:02:38.2]} 8. h4 {[%clk
0:02:57.5]} 8... h6 {[%clk 0:02:35]} 9. O-O {[%clk 0:02:52.9]} 9... Bg7 {[%clk
0:02:35]} 10. Qe2 {[%clk 0:02:32.3]} 10... b6 {[%clk 0:02:21.1]} 11. Rd1 {[%clk
0:02:31.8]} 11... cxd4 {[%clk 0:02:00.6]} 12. cxd4 {[%clk 0:02:33.7]} 12... Nb4
{[%clk 0:02:01.1]} 13. Bb5 {[%clk 0:02:35.1]} 13... a6 {[%clk 0:01:59.1]} 14.
Ba4 {[%clk 0:02:36.1]} 14... a5 {[%clk 0:01:58.1]} 15. Bb5 {[%clk 0:02:36.6]}
15... Ba6 {[%clk 0:01:56.6]} 16. a3 {[%clk 0:02:38]} 16... Bxb5 {[%clk
0:01:55.4]} 17. Qxb5 {[%clk 0:02:39.9]} 17... Na6 {[%clk 0:01:43.2]} 18. Nf1
{[%clk 0:02:33.9]} 18... O-O {[%clk 0:01:27.5]} 19. Be3 {[%clk 0:02:22.1]} 19...
Nc7 {[%clk 0:00:56.2]} 20. Qc6 {[%clk 0:02:12.6]} 20... Nb8 {[%clk 0:00:48.4]}
21. Qxb6 {[%clk 0:02:12]} 21... Ra6 {[%clk 0:00:45.4]} 22. Qb3 {[%clk
0:02:05.4]} 22... Nd7 {[%clk 0:00:38.3]} 23. Rac1 {[%clk 0:02:03]} 23... a4
{[%clk 0:00:33.4]} 24. Qc2 {[%clk 0:01:55.5]} 24... Nb5 {[%clk 0:00:27.8]} 25.
Ng3 {[%clk 0:01:38.1]} 25... Nb6 {[%clk 0:00:28.5]} 26. Nd2 {[%clk 0:01:32.3]}
26... Qxh4 {[%clk 0:00:25.6]} 27. Qc5 {[%clk 0:01:26.8]} 27... Na7 {[%clk
0:00:20.9]} 28. Ngf1 {[%clk 0:01:05.4]} 28... Nac8 {[%clk 0:00:21]} 29. Qb5
{[%clk 0:01:04.4]} 29... Ra8 {[%clk 0:00:20]} 30. Nf3 {[%clk 0:01:05]} 30... Qe7
{[%clk 0:00:18.5]} 31. Rc2 {[%clk 0:01:02.8]} 31... g5 {[%clk 0:00:19.4]} 32.
Rdc1 {[%clk 0:01:02.5]} 32... g4 {[%clk 0:00:20.1]} 33. N3d2 {[%clk 0:01:03.7]}
33... Qh4 {[%clk 0:00:20.6]} 34. Ng3 {[%clk 0:00:40.8]} 34... f6 {[%clk
0:00:20]} 35. exf6 {[%clk 0:00:39]} 35... Bxf6 {[%clk 0:00:21]} 36. Rc7 {[%clk
0:00:38.1]} 36... Bd8 {[%clk 0:00:12.9]} 37. Rb7 {[%clk 0:00:35.8]} 37... Qf6
{[%clk 0:00:10.7]} 38. Qe2 {[%clk 0:00:31.3]} 38... Nd6 {[%clk 0:00:11.3]} 39.
Qxg4+ {[%clk 0:00:29.8]} 39... Kh8 {[%clk 0:00:12.4]} 40. Nh5 {[%clk 0:00:24.7]}
40... Nxb7 {[%clk 0:00:04.9]} 41. Nxf6 {[%clk 0:00:23.2]} 41... Rxf6 {[%clk
0:00:06.1]} 42. Rc6 {[%clk 0:00:17.3]} 42... Nc4 {[%clk 0:00:04.5]} 43. Nxc4
{[%clk 0:00:17.6]} 43... dxc4 {[%clk 0:00:05.7]} 44. Rxe6 {[%clk 0:00:19.3]}
44... Nd6 {[%clk 0:00:04.8]} 45. Rxf6 {[%clk 0:00:19.7]} 45... Bxf6 {[%clk
0:00:05.9]} 46. Qe6 {[%clk 0:00:20.3]} 46... Ne8 {[%clk 0:00:06.7]} 47. Qxc4
{[%clk 0:00:20.7]} 47... Rb8 {[%clk 0:00:07.4]} 48. Qxa4 {[%clk 0:00:19.6]}
48... Ng7 {[%clk 0:00:06.8]} 49. b4 {[%clk 0:00:19.9]} 49... Nf5 {[%clk
0:00:08.1]} 50. Qc6 {[%clk 0:00:18.5]} 50... Bg7 {[%clk 0:00:07.2]} 51. g3
{[%clk 0:00:19.5]} 51... Rd8 {[%clk 0:00:06.8]} 52. d5 {[%clk 0:00:19.4]} 52...
Nd6 {[%clk 0:00:07.5]} 53. b5 {[%clk 0:00:19.7]} 53... Ne4 {[%clk 0:00:04.6]}
54. b6 {[%clk 0:00:20.3]} 54... Be5 {[%clk 0:00:04.5]} 55. b7 {[%clk 0:00:20.4]}
55... Nf6 {[%clk 0:00:05.5]} 56. Ba7 {[%clk 0:00:18.9]} 1-0